[Event "FIDE Chesscom Grand Swiss 2019"]
[Site "Douglas-Isle of Man"]
[Date "2019.10.15"]
[Round "7.8"]
[White "Erdos, Viktor"]
[Black "Nabaty, Tamir"]
[Result "1/2-1/2"]
[ECO "D21"]
[WhiteElo "2604"]
[BlackElo "2658"]
[Annotator "RC"]
[PlyCount "83"]
[EventDate "2019.10.10"]
[EventType "swiss"]
[EventCountry "GBR"]
[SourceTitle "playchess.com"]
[Source "ChessBase"]
[SourceQuality "1"]
[TimeControl "40/6000+30:20/3000+30:900+30"]

1. d4 {[%emt 0:00:00]} d5 {[%emt 0:00:19]} 2. c4 {[%emt 0:00:00]} dxc4 {[%emt 0:00:05]} 3. Nf3 {[%emt 0:00:00]} e6 {[%emt 0:00:43]} 4. e3 {[%emt 0:00:14]} b5 {[%emt 0:00:07]} 5. a4 {[%emt 0:00:08]} b4 {[%emt 0:00:06]} 6. Nbd2 {[%emt 0:00:14]} Nf6 {[%emt 0:00:14]} 7. Nxc4 {[%emt 0:00:13]} Bb7 {[%emt 0:00:20]} 8. Bd3 {[%emt 0:01:17]} c5 {[%emt 0:00:32]} 9. O-O {[%emt 0:06:21]} Be7 {[%emt 0:04:59]} 10. dxc5 {[%emt 0:04:55]} Bxc5 {[%emt 0:00:43]} 11. Qe2 {[%emt 0:03:53]} Nc6 {[%emt 0:05:47]} 12. b3 {[%emt 0:16:36]} Qc7 {[%emt 0:08:57]} 13. Bb2 {[%emt 0:03:38]} O-O {[%emt 0:02:19]} 14. Ng5 {[%emt 0:21:27]} e5 {[%emt 0:38:01]} 15. Rac1 {[%emt 0:07:20]} Rad8 {[%emt 0:02:34]} 16. Qc2 {[%emt 0:14:52]} h6 {[%emt 0:01:19]} 17. Nh7 {[%emt 0:05:29]} Nxh7 {[%emt 0:02:50]} 18. Bxh7+ {[%emt 0:00:04]} Kh8 {[%emt 0:00:04]} 19. Be4 {[%emt 0:00:08]} Rfe8 {[%emt 0:07:15]} 20. Rfd1 {[%emt 0:08:28]} Rc8 {[%emt 0:01:08]} 21. Bf5 {[%emt 0:02:39]} Rcd8 {[%emt 0:00:21]} 22. Be4 {[%emt 0:05:21]} Rc8 {[%emt 0:04:31]} 23. h3 {[%emt 0:02:20]} Qe7 {[%emt 0:07:50]} 24. Bf5 {[%emt 0:04:22]} Rc7 {[%emt 0:00:46]} 25. Qe2 {[%emt 0:00:14]} g6 {[%emt 0:06:45]} 26. Be4 {[%emt 0:01:14]} Kh7 {[%emt 0:00:53]} 27. Bd5 {[%emt 0:01:03]} f6 {[%emt 0:02:50]} 28. Nd2 {[%emt 0:00:41]} Rd8 {[%emt 0:00:59]} 29. Ne4 {[%emt 0:00:33]} Bb6 {[%emt 0:00:39]} 30. Qb5 {[%emt 0:00:35]} f5 {[%emt 0:01:34]} 31. Nc5 {[%emt 0:00:27]} Nd4 {[%emt 0:01:12]} 32. exd4 {[%emt 0:00:26]} Rxd5 {[%emt 0:01:17]} 33. a5 {[%emt 0:00:08]} Bxc5 {[%emt 0:05:32]} 34. dxc5 {[%emt 0:00:10]} Bc6 {[%emt 0:00:44]} 35. Qe2 {[%emt 0:00:23]} Rcd7 {[%emt 0:00:44]} 36. Rxd5 {[%emt 0:00:47]} Rxd5 {[%emt 0:00:02]} 37. f3 {[%emt 0:00:37]} Rxc5 {[%emt 0:01:29]} 38. Qe3 {[%emt 0:00:12]} Rxc1+ {[%emt 0:00:37]} 39. Qxc1 {[%emt 0:00:03]} Bd5 {[%emt 0:01:40]} 40. Qe3 {[%emt 0:00:11]} g5 {[%emt 0:00:38]} 41. Qxe5 {[%emt 0:50:34]} Qxe5 {[%emt 0:50:07]} 42. Bxe5 {[%emt 0:00:03]} 1/2-1/2

[Event "FIDE Chesscom Grand Swiss 2019"]
[Site "Douglas-Isle of Man"]
[Date "2019.10.15"]
[Round "7.10"]
[White "Lu, Shanglei"]
[Black "Oparin, Grigoriy"]
[Result "1/2-1/2"]
[ECO "C55"]
[WhiteElo "2602"]
[BlackElo "2654"]
[Annotator "RC"]
[PlyCount "106"]
[EventDate "2019.10.10"]
[EventType "swiss"]
[EventCountry "GBR"]
[SourceTitle "playchess.com"]
[Source "ChessBase"]
[SourceQuality "1"]
[TimeControl "40/6000+30:20/3000+30:900+30"]

1. e4 {[%emt 0:00:00]} e5 {[%emt 0:00:00]} 2. Nf3 {[%emt 0:00:00]} Nc6 {[%emt 0:00:00]} 3. Bc4 {[%emt 0:00:15]} Nf6 {[%emt 0:00:00]} 4. d3 {[%emt 0:01:39]} h6 {[%emt 0:00:00]} 5. O-O {[%emt 0:00:59]} d6 {[%emt 0:00:03]} 6. a4 {[%emt 0:00:06]} g6 {[%emt 0:02:58]} 7. a5 {[%emt 0:03:01]} Bg7 {[%emt 0:02:59]} 8. Nc3 {[%emt 0:00:43]} O-O {[%emt 0:01:42]} 9. h3 {[%emt 0:01:05]} Rb8 {[%emt 0:03:09]} 10. Be3 {[%emt 0:18:27]} b6 {[%emt 0:01:47]} 11. axb6 {[%emt 0:02:59]} axb6 {[%emt 0:01:01]} 12. d4 {[%emt 0:02:37]} exd4 {[%emt 0:02:18]} 13. Nxd4 {[%emt 0:01:00]} Bb7 {[%emt 0:05:24]} 14. Nxc6 {[%emt 0:10:08]} Bxc6 {[%emt 0:00:06]} 15. Bd5 {[%emt 0:00:03]} Bxd5 {[%emt 0:10:58]} 16. exd5 {[%emt 0:02:47]} b5 {[%emt 0:00:13]} 17. Qd3 {[%emt 0:04:54]} b4 {[%emt 0:25:04]} 18. Nb5 {[%emt 0:00:18]} Nd7 {[%emt 0:09:26]} 19. Nd4 {[%emt 0:10:08]} Qh4 {[%emt 0:02:22]} 20. Ra7 {[%emt 0:02:49]} Nc5 {[%emt 0:11:22]} 21. Qd2 {[%emt 0:02:26]} Rbc8 {[%emt 0:05:05]} 22. Qxb4 {[%emt 0:03:18]} Rb8 {[%emt 0:01:48]} 23. Qc3 {[%emt 0:12:05]} Qe4 {[%emt 0:08:10]} 24. b4 {[%emt 0:02:15]} Qxd5 {[%emt 0:00:04]} 25. Ra5 {[%emt 0:00:10]} Ne4 {[%emt 0:03:51]} 26. Qxc7 {[%emt 0:01:35]} Rb7 {[%emt 0:00:43]} 27. Qc6 {[%emt 0:05:54]} Qxc6 {[%emt 0:00:03]} 28. Nxc6 {[%emt 0:00:04]} Nc3 {[%emt 0:01:18]} 29. Ra7 {[%emt 0:12:07]} Rxa7 {[%emt 0:00:35]} 30. Bxa7 {[%emt 0:00:05]} Re8 {[%emt 0:01:32]} 31. Be3 {[%emt 0:02:58]} Re4 {[%emt 0:04:37]} 32. Bd2 {[%emt 0:01:38]} Nb5 {[%emt 0:00:39]} 33. Rc1 {[%emt 0:03:08]} d5 {[%emt 0:03:48]} 34. Re1 {[%emt 0:01:54]} Rc4 {[%emt 0:00:36]} 35. Ne7+ {[%emt 0:00:09]} Kh7 {[%emt 0:00:04]} 36. Nxd5 {[%emt 0:00:05]} Rxc2 {[%emt 0:00:04]} 37. Be3 {[%emt 0:00:37]} Rb2 {[%emt 0:02:32]} 38. Bc5 {[%emt 0:00:49]} Nc3 {[%emt 0:01:46]} 39. Nxc3 {[%emt 0:03:22]} Bxc3 {[%emt 0:00:02]} 40. Re4 {[%emt 0:00:07]} g5 {[%emt 0:01:11]} 41. g3 {[%emt 0:08:36]} h5 {[%emt 0:08:19]} 42. Kg2 {[%emt 0:01:09]} Kg6 {[%emt 0:02:24]} 43. Kf3 {[%emt 0:01:07]} f5 {[%emt 0:06:27]} 44. Re6+ {[%emt 0:07:23]} Kf7 {[%emt 0:00:05]} 45. Rb6 {[%emt 0:00:09]} Rb3 {[%emt 0:02:56]} 46. Rb7+ {[%emt 0:09:37]} Kg6 {[%emt 0:00:56]} 47. Ke2 {[%emt 0:04:48]} h4 {[%emt 0:01:32]} 48. gxh4 {[%emt 0:02:00]} gxh4 {[%emt 0:00:03]} 49. f4 {[%emt 0:01:48]} Bf6 {[%emt 0:03:01]} 50. Be3 {[%emt 0:10:57]} Rb2+ {[%emt 0:00:06]} 51. Kd3 {[%emt 0:00:04]} Rb3+ {[%emt 0:00:49]} 52. Ke2 {[%emt 0:00:57]} Rb2+ {[%emt 0:00:04]} 53. Kd3 {[%emt 0:03:01]} Rb3+ {[%emt 0:00:06]} 1/2-1/2

[Event "FIDE Chesscom Grand Swiss 2019"]
[Site "Douglas-Isle of Man"]
[Date "2019.10.15"]
[Round "7.12"]
[White "Keymer, Vincent"]
[Black "Motylev, Alexander"]
[Result "1/2-1/2"]
[ECO "A11"]
[WhiteElo "2506"]
[BlackElo "2651"]
[Annotator "RC"]
[PlyCount "141"]
[EventDate "2019.10.10"]
[EventType "swiss"]
[EventCountry "GBR"]
[SourceTitle "playchess.com"]
[Source "ChessBase"]
[SourceQuality "1"]
[TimeControl "40/6000+30:20/3000+30:900+30"]

1. Nf3 {[%emt 0:00:00]} d5 {[%emt 0:00:00]} 2. e3 {[%emt 0:00:00]} Nf6 {[%emt 0:01:23]} 3. c4 {[%emt 0:00:00]} e6 {[%emt 0:00:04]} 4. Nc3 {[%emt 0:00:00]} c6 {[%emt 0:01:20]} 5. b3 {[%emt 0:00:37]} Bd6 {[%emt 0:00:14]} 6. Bb2 {[%emt 0:00:05]} O-O {[%emt 0:00:25]} 7. h3 {[%emt 0:00:04]} b6 {[%emt 0:01:58]} 8. d4 {[%emt 0:00:11]} Nbd7 {[%emt 0:00:44]} 9. Bd3 {[%emt 0:00:17]} Bb7 {[%emt 0:00:48]} 10. O-O {[%emt 0:00:10]} c5 {[%emt 0:01:20]} 11. cxd5 {[%emt 0:00:19]} exd5 {[%emt 0:00:14]} 12. Rc1 {[%emt 0:06:35]} Rc8 {[%emt 0:04:10]} 13. Qe2 {[%emt 0:07:47]} Re8 {[%emt 0:08:02]} 14. Ba6 {[%emt 0:07:03]} Qc7 {[%emt 0:12:45]} 15. Rfd1 {[%emt 0:04:44]} Bf8 {[%emt 0:01:10]} 16. a4 {[%emt 0:15:43]} Qb8 {[%emt 0:04:48]} 17. Bxb7 {[%emt 0:04:23]} Qxb7 {[%emt 0:00:06]} 18. dxc5 {[%emt 0:01:37]} bxc5 {[%emt 0:11:07]} 19. Qb5 {[%emt 0:00:54]} Qxb5 {[%emt 0:00:38]} 20. axb5 {[%emt 0:09:00]} Nb6 {[%emt 0:06:40]} 21. Na4 {[%emt 0:03:10]} Nfd7 {[%emt 0:02:40]} 22. Ra1 {[%emt 0:06:17]} Re4 {[%emt 0:17:03]} 23. Nxb6 {[%emt 0:07:07]} Nxb6 {[%emt 0:00:07]} 24. Rxa7 {[%emt 0:07:27]} Rb4 {[%emt 0:00:27]} 25. Rb7 {[%emt 0:04:44]} Rxb5 {[%emt 0:02:26]} 26. Be5 {[%emt 0:02:30]} Rxb3 {[%emt 0:06:42]} 27. Bc7 {[%emt 0:04:45]} c4 {[%emt 0:03:59]} 28. Bxb6 {[%emt 0:03:19]} Rc6 {[%emt 0:04:03]} 29. Rxd5 {[%emt 0:04:46]} Rbxb6 {[%emt 0:06:09]} 30. Rxb6 {[%emt 0:00:15]} Rxb6 {[%emt 0:00:14]} 31. Rd8 {[%emt 0:02:07]} f6 {[%emt 0:07:06]} 32. Rc8 {[%emt 0:00:43]} Rb1+ {[%emt 0:01:07]} 33. Kh2 {[%emt 0:00:03]} Kf7 {[%emt 0:03:07]} 34. Rc7+ {[%emt 0:03:44]} Kg8 {[%emt 0:00:05]} 35. g3 {[%emt 0:01:29]} Rc1 {[%emt 0:01:16]} 36. Kg2 {[%emt 0:03:15]} Bd6 {[%emt 0:02:00]} 37. Rc8+ {[%emt 0:00:57]} Kf7 {[%emt 0:00:05]} 38. Nd2 {[%emt 0:00:29]} c3 {[%emt 0:00:35]} 39. Nb3 {[%emt 0:00:09]} Rc2 {[%emt 0:00:48]} 40. Nd4 {[%emt 0:00:08]} Rc1 {[%emt 0:00:38]} 41. Ne2 {[%emt 0:05:36]} Rc2 {[%emt 0:00:37]} 42. Kf1 {[%emt 0:03:51]} Bb4 {[%emt 0:02:04]} 43. Rc7+ {[%emt 0:00:23]} Kg8 {[%emt 0:01:30]} 44. Rc4 {[%emt 0:03:40]} Rb2 {[%emt 0:04:03]} 45. Nxc3 {[%emt 0:03:11]} Bxc3 {[%emt 0:00:43]} 46. Rxc3 {[%emt 0:00:05]} Rb5 {[%emt 0:01:55]} 47. Rc8+ {[%emt 0:04:01]} Kf7 {[%emt 0:00:12]} 48. Rc7+ {[%emt 0:00:06]} Kg6 {[%emt 0:00:12]} 49. Kg2 {[%emt 0:03:37]} h5 {[%emt 0:00:30]} 50. Rd7 {[%emt 0:01:03]} Rb2 {[%emt 0:01:15]} 51. Kf3 {[%emt 0:02:25]} Ra2 {[%emt 0:02:31]} 52. h4 {[%emt 0:01:07]} Rb2 {[%emt 0:02:34]} 53. Rd3 {[%emt 0:01:16]} Ra2 {[%emt 0:01:01]} 54. e4 {[%emt 0:00:13]} Rb2 {[%emt 0:00:58]} 55. Ke3 {[%emt 0:00:41]} Ra2 {[%emt 0:00:32]} 56. f4 {[%emt 0:02:56]} Ra4 {[%emt 0:01:19]} 57. Kf3 {[%emt 0:01:10]} Rb4 {[%emt 0:00:44]} 58. Ke3 {[%emt 0:03:50]} Ra4 {[%emt 0:01:05]} 59. f5+ {[%emt 0:01:38]} Kh7 {[%emt 0:02:29]} 60. Rd7 {[%emt 0:00:56]} Kh6 {[%emt 0:00:53]} 61. Rd6 {[%emt 0:18:09]} Kh7 {[%emt 0:15:37]} 62. Rd4 {[%emt 0:01:52]} Ra3+ {[%emt 0:02:27]} 63. Kf4 {[%emt 0:01:23]} Ra1 {[%emt 0:00:36]} 64. Rd7 {[%emt 0:02:44]} Kh6 {[%emt 0:01:51]} 65. Re7 {[%emt 0:00:23]} Ra4 {[%emt 0:01:32]} 66. Re6 {[%emt 0:01:10]} Kh7 {[%emt 0:00:56]} 67. Rb6 {[%emt 0:01:01]} Ra1 {[%emt 0:01:04]} 68. Rb3 {[%emt 0:00:45]} Ra4 {[%emt 0:03:38]} 69. Kf3 {[%emt 0:00:17]} Kh6 {[%emt 0:00:49]} 70. Re3 {[%emt 0:01:00]} Ra5 {[%emt 0:06:25]} 71. Rc3 {[%emt 0:02:22]} 1/2-1/2

[Event "FIDE Chesscom Grand Swiss 2019"]
[Site "Douglas-Isle of Man"]
[Date "2019.10.15"]
[Round "7.13"]
[White "Riazantsev, Alexander"]
[Black "Bjerre, Jonas Buhl"]
[Result "1/2-1/2"]
[ECO "D24"]
[WhiteElo "2645"]
[BlackElo "2506"]
[Annotator "RC"]
[PlyCount "111"]
[EventDate "2019.10.10"]
[EventType "swiss"]
[EventCountry "GBR"]
[SourceTitle "playchess.com"]
[Source "ChessBase"]
[SourceQuality "1"]
[TimeControl "40/6000+30:20/3000+30:900+30"]

1. d4 {[%emt 0:00:00]} Nf6 {[%emt 0:00:00]} 2. c4 {[%emt 0:00:00]} e6 {[%emt 0:00:00]} 3. Nf3 {[%emt 0:00:00]} d5 {[%emt 0:00:01]} 4. Nc3 {[%emt 0:00:00]} dxc4 {[%emt 0:00:39]} 5. e4 {[%emt 0:00:00]} Bb4 {[%emt 0:00:44]} 6. Bxc4 {[%emt 0:00:40]} Nxe4 {[%emt 0:02:00]} 7. O-O {[%emt 0:00:15]} Nf6 {[%emt 0:00:50]} 8. Qa4+ {[%emt 0:00:45]} Nc6 {[%emt 0:00:18]} 9. Bg5 {[%emt 0:00:33]} Bxc3 {[%emt 0:04:46]} 10. bxc3 {[%emt 0:00:17]} O-O {[%emt 0:00:29]} 11. Qc2 {[%emt 0:00:15]} h6 {[%emt 0:03:59]} 12. Bh4 {[%emt 0:01:58]} Ne7 {[%emt 0:01:44]} 13. Bxf6 {[%emt 0:02:20]} gxf6 {[%emt 0:00:05]} 14. Rae1 {[%emt 0:00:46]} Kg7 {[%emt 0:05:51]} 15. Re3 {[%emt 0:07:20]} Ng6 {[%emt 0:03:27]} 16. Bd3 {[%emt 0:04:12]} b6 {[%emt 0:11:57]} 17. Nh4 {[%emt 0:21:15]} f5 {[%emt 0:09:31]} 18. Nxg6 {[%emt 0:00:26]} fxg6 {[%emt 0:01:31]} 19. Bc4 {[%emt 0:07:21]} Re8 {[%emt 0:05:31]} 20. Rfe1 {[%emt 0:02:28]} Qd6 {[%emt 0:05:26]} 21. Re5 {[%emt 0:06:33]} Bd7 {[%emt 0:03:03]} 22. h4 {[%emt 0:01:44]} Rac8 {[%emt 0:06:42]} 23. Qe2 {[%emt 0:10:04]} c5 {[%emt 0:07:55]} 24. Ba6 {[%emt 0:03:48]} Rcd8 {[%emt 0:01:46]} 25. dxc5 {[%emt 0:00:12]} bxc5 {[%emt 0:00:31]} 26. Bc4 {[%emt 0:00:07]} Bc6 {[%emt 0:09:56]} 27. Qe3 {[%emt 0:14:03]} Be4 {[%emt 0:03:47]} 28. Qf4 {[%emt 0:00:59]} Qd2 {[%emt 0:04:19]} 29. Qxd2 {[%emt 0:08:36]} Rxd2 {[%emt 0:00:04]} 30. Rxc5 {[%emt 0:00:02]} Kf6 {[%emt 0:06:28]} 31. f3 {[%emt 0:02:27]} Bd3 {[%emt 0:01:34]} 32. Bb3 {[%emt 0:00:11]} Bc2 {[%emt 0:01:35]} 33. Bc4 {[%emt 0:08:41]} Bd3 {[%emt 0:01:50]} 34. Bd5 {[%emt 0:01:01]} Bc2 {[%emt 0:02:45]} 35. c4 {[%emt 0:03:10]} Rd1 {[%emt 0:01:35]} 36. Rxd1 {[%emt 0:01:09]} Bxd1 {[%emt 0:00:04]} 37. Bb7 {[%emt 0:01:09]} Re7 {[%emt 0:00:58]} 38. Bc8 {[%emt 0:00:55]} Ba4 {[%emt 0:00:45]} 39. Kf2 {[%emt 0:01:03]} e5 {[%emt 0:01:47]} 40. Ra5 {[%emt 0:01:29]} Be8 {[%emt 0:01:35]} 41. Ra6+ {[%emt 0:03:15]} Kg7 {[%emt 0:05:57]} 42. Be6 {[%emt 0:01:05]} Bf7 {[%emt 0:04:00]} 43. Bxf7 {[%emt 0:01:53]} Kxf7 {[%emt 0:01:20]} 44. h5 {[%emt 0:07:40]} gxh5 {[%emt 0:00:58]} 45. Rxh6 {[%emt 0:00:02]} Rd7 {[%emt 0:03:32]} 46. Rxh5 {[%emt 0:17:57]} Rd2+ {[%emt 0:02:26]} 47. Ke3 {[%emt 0:00:14]} Rxg2 {[%emt 0:01:25]} 48. Rxf5+ {[%emt 0:00:08]} Ke6 {[%emt 0:01:01]} 49. Rh5 {[%emt 0:00:04]} Rxa2 {[%emt 0:01:15]} 50. Rh6+ {[%emt 0:00:03]} Kf5 {[%emt 0:01:53]} 51. Rh5+ {[%emt 0:01:48]} Ke6 {[%emt 0:00:26]} 52. Ke4 {[%emt 0:02:09]} Re2+ {[%emt 0:01:57]} 53. Kd3 {[%emt 0:00:01]} Rf2 {[%emt 0:01:22]} 54. Rh6+ {[%emt 0:00:10]} Kf5 {[%emt 0:00:50]} 55. Ke3 {[%emt 0:00:11]} Ra2 {[%emt 0:00:56]} 56. Rh5+ {[%emt 0:00:29]} 1/2-1/2

[Event "FIDE Chesscom Grand Swiss 2019"]
[Site "Douglas-Isle of Man"]
[Date "2019.10.15"]
[Round "7.14"]
[White "Saduakassova, Dinara"]
[Black "Chigaev, Maksim"]
[Result "1/2-1/2"]
[ECO "A49"]
[WhiteElo "2481"]
[BlackElo "2644"]
[Annotator "RC"]
[PlyCount "153"]
[EventDate "2019.10.10"]
[EventType "swiss"]
[EventCountry "GBR"]
[SourceTitle "playchess.com"]
[Source "ChessBase"]
[SourceQuality "1"]
[TimeControl "40/6000+30:20/3000+30:900+30"]

1. d4 {[%emt 0:00:00]} Nf6 {[%emt 0:00:00]} 2. c4 {[%emt 0:00:00]} g6 {[%emt 0:00:00]} 3. g3 {[%emt 0:00:13]} c5 {[%emt 0:00:00]} 4. dxc5 {[%emt 0:01:29]} Na6 {[%emt 0:00:00]} 5. Bg2 {[%emt 0:04:02]} Bg7 {[%emt 0:01:13]} 6. Nc3 {[%emt 0:04:41]} O-O {[%emt 0:01:03]} 7. Nf3 {[%emt 0:03:32]} Nxc5 {[%emt 0:01:04]} 8. O-O {[%emt 0:00:13]} b6 {[%emt 0:02:25]} 9. Nd4 {[%emt 0:07:51]} Bb7 {[%emt 0:00:22]} 10. Bxb7 {[%emt 0:01:32]} Nxb7 {[%emt 0:00:08]} 11. Bg5 {[%emt 0:02:40]} Rc8 {[%emt 0:03:34]} 12. b3 {[%emt 0:04:48]} Nc5 {[%emt 0:01:39]} 13. Bxf6 {[%emt 0:07:02]} Bxf6 {[%emt 0:00:10]} 14. Rc1 {[%emt 0:00:14]} Bg7 {[%emt 0:05:44]} 15. Qd2 {[%emt 0:02:35]} d6 {[%emt 0:01:56]} 16. Rfd1 {[%emt 0:01:39]} Re8 {[%emt 0:00:55]} 17. Qe3 {[%emt 0:02:43]} a6 {[%emt 0:09:45]} 18. Nd5 {[%emt 0:07:20]} e6 {[%emt 0:05:09]} 19. Nc3 {[%emt 0:02:23]} Qc7 {[%emt 0:04:47]} 20. Rc2 {[%emt 0:07:21]} Red8 {[%emt 0:03:08]} 21. Rcd2 {[%emt 0:07:06]} Nb7 {[%emt 0:06:12]} 22. Ne4 {[%emt 0:03:55]} h6 {[%emt 0:06:32]} 23. Qf3 {[%emt 0:04:33]} Kh8 {[%emt 0:03:43]} 24. g4 {[%emt 0:07:49]} d5 {[%emt 0:07:44]} 25. cxd5 {[%emt 0:01:01]} Rxd5 {[%emt 0:00:06]} 26. e3 {[%emt 0:05:53]} Qe7 {[%emt 0:09:23]} 27. Kg2 {[%emt 0:01:56]} Nc5 {[%emt 0:06:45]} 28. Ne2 {[%emt 0:06:31]} Nxe4 {[%emt 0:04:02]} 29. Qxe4 {[%emt 0:00:03]} Rxd2 {[%emt 0:00:19]} 30. Rxd2 {[%emt 0:00:06]} Kh7 {[%emt 0:00:52]} 31. Qf3 {[%emt 0:03:28]} Rc7 {[%emt 0:00:22]} 32. Ng3 {[%emt 0:01:41]} b5 {[%emt 0:01:05]} 33. Qd1 {[%emt 0:01:57]} a5 {[%emt 0:01:36]} 34. Rc2 {[%emt 0:01:14]} Rd7 {[%emt 0:02:31]} 35. Rd2 {[%emt 0:00:11]} Rxd2 {[%emt 0:00:12]} 36. Qxd2 {[%emt 0:00:02]} a4 {[%emt 0:00:32]} 37. Qd3 {[%emt 0:04:08]} Qb7+ {[%emt 0:01:49]} 38. Qe4 {[%emt 0:00:59]} Qd7 {[%emt 0:00:06]} 39. bxa4 {[%emt 0:01:42]} bxa4 {[%emt 0:00:06]} 40. h4 {[%emt 0:01:28]} f5 {[%emt 0:01:35]} 41. Qc4 {[%emt 0:05:38]} fxg4 {[%emt 0:01:24]} 42. h5 {[%emt 0:01:24]} Qd5+ {[%emt 0:00:26]} 43. Qxd5 {[%emt 0:00:06]} exd5 {[%emt 0:00:06]} 44. f3 {[%emt 0:04:05]} gxf3+ {[%emt 0:00:30]} 45. Kxf3 {[%emt 0:00:02]} Be5 {[%emt 0:00:15]} 46. hxg6+ {[%emt 0:00:56]} Kxg6 {[%emt 0:00:10]} 47. Nh1 {[%emt 0:01:20]} h5 {[%emt 0:10:06]} 48. Nf2 {[%emt 0:00:07]} a3 {[%emt 0:01:16]} 49. Nd3 {[%emt 0:05:18]} Kf5 {[%emt 0:02:00]} 50. Nc5 {[%emt 0:10:29]} Kf6 {[%emt 0:06:26]} 51. Nd3 {[%emt 0:02:46]} Bd6 {[%emt 0:00:49]} 52. Nf2 {[%emt 0:03:16]} Ke6 {[%emt 0:02:57]} 53. Nd3 {[%emt 0:01:08]} Bc7 {[%emt 0:01:37]} 54. Ne1 {[%emt 0:02:06]} Bd6 {[%emt 0:00:47]} 55. Nd3 {[%emt 0:00:10]} h4 {[%emt 0:03:02]} 56. Kg4 {[%emt 0:07:27]} Be7 {[%emt 0:18:22]} 57. Nf4+ {[%emt 0:00:34]} Kd6 {[%emt 0:00:02]} 58. Ng6 {[%emt 0:00:44]} Bd8 {[%emt 0:00:50]} 59. Nxh4 {[%emt 0:01:48]} Kc5 {[%emt 0:00:06]} 60. Nf5 {[%emt 0:02:23]} Kc4 {[%emt 0:02:49]} 61. Kf3 {[%emt 0:16:06]} Kd3 {[%emt 0:15:28]} 62. Kf2 {[%emt 0:03:42]} Bb6 {[%emt 0:05:46]} 63. Kf3 {[%emt 0:00:05]} Bc5 {[%emt 0:00:05]} 64. Kf2 {[%emt 0:00:12]} Kd2 {[%emt 0:04:32]} 65. Kf3 {[%emt 0:00:12]} Kc3 {[%emt 0:00:45]} 66. Ke2 {[%emt 0:00:47]} Kc2 {[%emt 0:00:12]} 67. Ke1 {[%emt 0:01:35]} Kd3 {[%emt 0:00:47]} 68. Kf2 {[%emt 0:00:06]} Ba7 {[%emt 0:04:51]} 69. Kf3 {[%emt 0:00:18]} Kc3 {[%emt 0:00:05]} 70. Ke2 {[%emt 0:01:45]} Kb2 {[%emt 0:00:07]} 71. Kd3 {[%emt 0:01:04]} Bc5 {[%emt 0:00:44]} 72. Nd4 {[%emt 0:01:15]} Bxd4 {[%emt 0:00:28]} 73. exd4 {[%emt 0:00:04]} Kb1 {[%emt 0:00:51]} 74. Kd2 {[%emt 0:00:44]} Kxa2 {[%emt 0:00:06]} 75. Kc2 {[%emt 0:00:01]} Ka1 {[%emt 0:00:02]} 76. Kc1 {[%emt 0:00:03]} a2 {[%emt 0:00:13]} 77. Kc2 {[%emt 0:00:02]} 1/2-1/2

[Event "FIDE Chesscom Grand Swiss 2019"]
[Site "Douglas-Isle of Man"]
[Date "2019.10.15"]
[Round "7.15"]
[White "Zvjaginsev, Vadim"]
[Black "Paravyan, David"]
[Result "1/2-1/2"]
[ECO "C44"]
[WhiteElo "2644"]
[BlackElo "2602"]
[Annotator "RC"]
[PlyCount "69"]
[EventDate "2019.10.10"]
[EventType "swiss"]
[EventCountry "GBR"]
[SourceTitle "playchess.com"]
[Source "ChessBase"]
[SourceQuality "1"]
[TimeControl "40/6000+30:20/3000+30:900+30"]

1. e4 {[%emt 0:00:04]} e5 {[%emt 0:00:00]} 2. Nf3 {[%emt 0:00:05]} Nc6 {[%emt 0:00:00]} 3. g3 {[%emt 0:00:04]} d5 {[%emt 0:01:24]} 4. exd5 {[%emt 0:00:40]} Qxd5 {[%emt 0:00:05]} 5. Nc3 {[%emt 0:00:28]} Qd6 {[%emt 0:00:05]} 6. Bg2 {[%emt 0:00:56]} Bg4 {[%emt 0:00:05]} 7. h3 {[%emt 0:00:41]} Bh5 {[%emt 0:00:05]} 8. g4 {[%emt 0:01:20]} Bg6 {[%emt 0:00:04]} 9. d3 {[%emt 0:01:34]} O-O-O {[%emt 0:00:17]} 10. Be3 {[%emt 0:01:26]} Nd4 {[%emt 0:08:39]} 11. O-O {[%emt 0:05:55]} c6 {[%emt 0:06:51]} 12. Ne4 {[%emt 0:09:35]} Qc7 {[%emt 0:12:48]} 13. c3 {[%emt 0:01:54]} Nxf3+ {[%emt 0:00:11]} 14. Qxf3 {[%emt 0:01:50]} Nf6 {[%emt 0:35:52]} 15. Rfd1 {[%emt 0:17:37]} Nd5 {[%emt 0:16:50]} 16. d4 {[%emt 0:06:25]} Nxe3 {[%emt 0:00:45]} 17. Qxe3 {[%emt 0:01:46]} exd4 {[%emt 0:04:29]} 18. Rxd4 {[%emt 0:06:02]} Rxd4 {[%emt 0:01:45]} 19. cxd4 {[%emt 0:03:15]} Bxe4 {[%emt 0:03:00]} 20. Qxe4 {[%emt 0:07:44]} Bd6 {[%emt 0:00:22]} 21. b4 {[%emt 0:02:17]} Kb8 {[%emt 0:02:08]} 22. d5 {[%emt 0:04:30]} c5 {[%emt 0:02:54]} 23. Rc1 {[%emt 0:00:52]} c4 {[%emt 0:00:03]} 24. Rxc4 {[%emt 0:06:41]} Qd7 {[%emt 0:00:10]} 25. Qf5 {[%emt 0:01:35]} Qxf5 {[%emt 0:02:20]} 26. gxf5 {[%emt 0:00:04]} a6 {[%emt 0:05:18]} 27. a4 {[%emt 0:06:16]} g6 {[%emt 0:01:41]} 28. fxg6 {[%emt 0:02:02]} hxg6 {[%emt 0:00:04]} 29. b5 {[%emt 0:01:09]} axb5 {[%emt 0:00:03]} 30. axb5 {[%emt 0:00:05]} Ka7 {[%emt 0:00:45]} 31. Rc3 {[%emt 0:01:03]} Kb6 {[%emt 0:00:16]} 32. Bf1 {[%emt 0:03:13]} Re8 {[%emt 0:00:43]} 33. Re3 {[%emt 0:00:51]} Rxe3 {[%emt 0:00:04]} 34. fxe3 {[%emt 0:00:08]} Kc5 {[%emt 0:00:03]} 35. Kf2 {[%emt 0:00:23]} 1/2-1/2